fUST/lending_fUST_20250222
["ID","MTS","AMOUNT","RATE_DAILY","PERIOD"]
[354072413,1740222650449,-532.606098,0.0001614,2]
[354072414,1740222650459,-151.0,0.0001614,2]
[354072415,1740222650468,-532.606098,0.0001614,2]
[354072416,1740222650478,-178.724788,0.0001614,2]
[354072417,1740222650488,-178.724788,0.0001614,2]
[354072418,1740222650497,-2345.546677,0.0001614,2]
[354072419,1740222650507,-767.665301,0.0001614,2]
[354072420,1740222650519,-2345.546677,0.0001614,2]
[354072421,1740222650529,-767.665301,0.0001614,2]
[354072422,1740222650538,-810.342058,0.0001614,2]
[354072423,1740222650548,-810.342058,0.0001614,2]
[354072424,1740222650558,-726.184325,0.00016146,2]
[354072425,1740222650567,-726.184325,0.00016146,2]
[354072426,1740222650576,-151.0,0.00016146,2]
[354072427,1740222650586,-151.0,0.00016146,2]
[354072428,1740222650595,-151.0,0.00016146,2]
[354072429,1740222650605,-151.0,0.00016146,2]
[354072430,1740222650613,-572.347246,0.00016146,2]
[354072431,1740222650623,-572.347246,0.00016146,2]
[354072432,1740222650631,-7839.98853834,0.00016146,2]
[354072433,1740222650641,-5000.0,0.00016146,2]
[354072434,1740222650650,-5000.0,0.00016146,2]
[354072435,1740222650659,-5000.0,0.00016146,2]
[354072436,1740222650669,-5000.0,0.00016146,2]
[354072437,1740222650678,-3000.0,0.0001615,2]
[354072438,1740222650688,-3000.0,0.0001616,2]
[354072439,1740222650698,-681.19,0.00016164,2]
[354072440,1740222650707,-3000.0,0.0001617,2]
[354072441,1740222650717,-1000.0,0.00016175,2]
[354072442,1740222650727,-3000.0,0.0001618,2]
[354072443,1740222650737,-3000.0,0.0001619,2]
[354072444,1740222650746,-3000.0,0.000162,2]
[354072445,1740222650756,-3000.0,0.0001621,2]
[354072446,1740222650765,-855.03201106,0.00016216,2]
[354072447,1740222650774,-3000.0,0.0001622,2]
[354072448,1740222650784,-3000.0,0.0001623,2]
[354072449,1740222650793,-3000.0,0.0001624,2]
[354072450,1740222650803,-3000.0,0.0001625,2]
[354072451,1740222650812,-3000.0,0.0001626,2]
[354072452,1740222650822,-3000.0,0.0001627,2]
[354072453,1740222650832,-3000.0,0.0001628,2]
[354072454,1740222650842,-3000.0,0.0001629,2]
[354072455,1740222650852,-399.15,0.00016298,2]
[354072456,1740222650862,-3000.0,0.000163,2]
[354072457,1740222650872,-3000.0,0.0001631,2]
[354072458,1740222650881,-855.03201106,0.00016316,2]
[354072459,1740222650891,-3000.0,0.0001632,2]
[354072460,1740222650900,-3000.0,0.0001633,2]
[354072461,1740222650910,-3000.0,0.0001634,2]
[354072462,1740222650920,-3000.0,0.0001635,2]
[354072463,1740222650929,-153.0,0.00016356,2]
[354072464,1740222650938,-306.0,0.00016356,2]
[354072465,1740222650947,-995.6808445,0.00016356,2]
[354072466,1740222650956,-153.0,0.00016356,2]
[354072467,1740222650966,-3000.0,0.0001636,2]
[354072468,1740222650975,-3000.0,0.0001637,2]
[354072469,1740222650984,-3000.0,0.0001638,2]
[354072470,1740222650994,-3000.0,0.0001639,2]
[354072471,1740222651004,-3000.0,0.000164,2]
[354072472,1740222651014,-3000.0,0.0001641,2]
[354072473,1740222651023,-484.02343,0.0001641,2]
[354072474,1740222651032,-484.02343,0.0001641,2]
[354072475,1740222651042,-855.03201106,0.00016416,2]
[354072476,1740222651051,-3000.0,0.0001642,2]
[354072477,1740222651061,-151.0,0.00016422,2]
[354072478,1740222651070,-151.0,0.00016422,2]
[354072479,1740222651080,-825.400027,0.00016422,2]
[354072480,1740222651089,-825.400027,0.00016422,2]
[354072481,1740222651098,-1500.0,0.00016422,2]
[354072482,1740222651108,-1296.31444142,0.00016422,2]
[354072483,1740222651118,-1500.0,0.00016422,2]
[354072484,1740222651132,-3000.0,0.0001643,2]
[354072485,1740222651142,-465.00013466,0.00016431,2]
[354072486,1740222651151,-500.0,0.00016438,3]
[354072487,1740222651162,-500.0,0.00016438,3]
[354072488,1740222651172,-500.0,0.00016438,3]
[354072489,1740222651181,-315.11686728,0.00016438,3]
[354072490,1740222651269,-1500.0,0.00016438,2]
[354072491,1740222651279,-210.455,0.00016438,2]
[354072492,1740222651288,-210.455,0.00016438,2]
[354072493,1740222651298,-5000.0,0.00016438,2]
[354072494,1740222651307,-5000.0,0.00016438,2]
[354072495,1740222651317,-5000.0,0.00016438,2]
[354072496,1740222651327,-5000.0,0.00016438,2]
[354072497,1740222651336,-5000.0,0.00016438,2]
[354072498,1740222651346,-5000.0,0.00016438,2]
[354072499,1740222651355,-5000.0,0.00016438,2]
[354072500,1740222651365,-5000.0,0.00016438,2]
[354072501,1740222651373,-5000.0,0.00016438,2]
[354072502,1740222651382,-5000.0,0.00016438,2]
[354072503,1740222651391,-5000.0,0.00016438,2]
[354072504,1740222651401,-5000.0,0.00016438,2]
[354072505,1740222651411,-5000.0,0.00016438,2]
[354072506,1740222651421,-5000.0,0.00016438,2]
[354072507,1740222651430,-5000.0,0.00016438,2]
[354072508,1740222651439,-5000.0,0.00016438,2]
[354072509,1740222651448,-5000.0,0.00016438,2]
[354072510,1740222651457,-5000.0,0.00016438,2]
[354072511,1740222651467,-5000.0,0.00016438,2]
[354072512,1740222651476,-5000.0,0.00016438,2]
[354072513,1740222651485,-5000.0,0.00016438,2]
[354072514,1740222651494,-5000.0,0.00016438,2]
[354072515,1740222651504,-5000.0,0.00016438,2]
[354072516,1740222651513,-5000.0,0.00016438,2]
[354072517,1740222651522,-5000.0,0.00016438,2]
[354072518,1740222651531,-5000.0,0.00016438,2]
[354072519,1740222651542,-5000.0,0.00016438,2]
[354072520,1740222651551,-5000.0,0.00016438,2]
[354072521,1740222651561,-5000.0,0.00016438,2]
[354072522,1740222651570,-5000.0,0.00016438,2]
[354072523,1740222651579,-5000.0,0.00016438,2]
[354072524,1740222651589,-5000.0,0.00016438,2]
[354072525,1740222651598,-5000.0,0.00016438,2]
[354072526,1740222651608,-5000.0,0.00016438,2]
[354072527,1740222651617,-5000.0,0.00016438,2]
[354072528,1740222651627,-5000.0,0.00016438,2]
[354072529,1740222651637,-5000.0,0.00016438,2]
[354072530,1740222651646,-5000.0,0.00016438,2]
[354072531,1740222651656,-5031.483363,0.00016438,2]
[354072532,1740222651666,-3000.0,0.0001644,2]
[354072533,1740222651676,-2500.0,0.0001644,2]
[354072534,1740222651685,-2500.0,0.00016449,2]
[354072535,1740222651694,-3000.0,0.0001645,2]
[354072536,1740222651703,-2500.0,0.00016458,2]
[354072537,1740222651713,-3000.0,0.0001646,2]
[354072538,1740222651723,-3000.0,0.0001647,2]
[354072539,1740222651732,-485.88394331,0.00016473,2]
[354072540,1740222651742,-3000.0,0.0001648,2]
[354072541,1740222651752,-3000.0,0.0001649,2]
[354072542,1740222651762,-3000.0,0.000165,2]
[354072543,1740222651771,-3000.0,0.0001651,2]
[354072544,1740222651781,-314.412662,0.0001651,2]
[354072545,1740222651791,-314.412662,0.0001651,2]
[354072546,1740222651800,-361.260264,0.0001651,2]
[354072547,1740222651810,-361.260264,0.0001651,2]
[354072548,1740222651819,-855.03201106,0.00016516,2]
[354072549,1740222651829,-500.0,0.0001652,2]
[354072550,1740222651838,-3000.0,0.0001652,2]
[354072551,1740222651848,-3358.719246,0.0001652,2]
[354072552,1740222651857,-3358.719246,0.0001652,2]
[354072553,1740222651867,-3000.0,0.0001653,2]
[354072554,1740222651877,-3000.0,0.0001654,2]
[354072555,1740222651887,-532.606098,0.00016544,2]
[354072556,1740222651897,-151.0,0.00016544,2]
[354072557,1740222651907,-532.606098,0.00016544,2]
[354072558,1740222651916,-178.724788,0.00016544,2]
[354072559,1740222651926,-178.724788,0.00016544,2]
[354072560,1740222651935,-2345.546677,0.00016544,2]
[354072561,1740222651944,-767.665301,0.00016544,2]
[354072562,1740222651954,-2345.546677,0.00016544,2]
[354072563,1740222651963,-767.665301,0.00016544,2]
[354072564,1740222651972,-810.342058,0.00016544,2]
[354072565,1740222651982,-810.342058,0.00016544,2]
[354072566,1740222651991,-2200.0,0.00016544,2]
[354072567,1740222652001,-500.0,0.00016544,2]
[354072568,1740222652010,-3000.0,0.0001655,2]
[354072569,1740222652019,-3000.0,0.0001656,2]
[354072570,1740222652028,-726.184325,0.0001656,2]
[354072571,1740222652038,-726.184325,0.0001656,2]
[354072572,1740222652048,-3000.0,0.0001657,2]
[354072573,1740222652059,-3979.687646,0.0001658,2]
[354072574,1740222652069,-150.121,0.00016587,2]
[354072575,1740222652078,-279.738,0.00016587,2]
[354072576,1740222652087,-230.282,0.00016587,2]
[354072577,1740222652096,-1970.0,0.00016587,2]
[354072578,1740222652105,-538.0,0.00016587,2]
[354072579,1740222652115,-2287.0,0.00016587,2]
[354072580,1740222652128,-151.0,0.00016587,2]
[354072581,1740222652137,-151.0,0.00016587,2]
[354072582,1740222652146,-151.0,0.00016587,2]
[354072583,1740222652156,-151.0,0.00016587,2]
[354072584,1740222652166,-572.347246,0.00016587,2]
[354072585,1740222652176,-572.347246,0.00016587,2]
[354072586,1740222652185,-855.03201106,0.00016616,2]
[354072587,1740222652195,-153.0,0.0001662,2]
[354072588,1740222652207,-557.2941539,0.0001662,2]
[354072589,1740222652216,-153.0,0.0001662,2]
[354072590,1740222652225,-153.0,0.0001662,2]
[354072591,1740222652235,-462.0,0.00016621,2]
[354072592,1740222652244,-462.0,0.00016621,2]
[354072593,1740222652254,-462.0,0.00016621,2]
[354072594,1740222652263,-462.0,0.00016621,2]
[354072595,1740222652273,-462.0,0.00016621,2]
[354072596,1740222652282,-462.0,0.00016621,2]
[354072597,1740222652292,-462.0,0.00016621,2]
[354072598,1740222652303,-462.0,0.00016621,2]
[354072599,1740222652313,-462.0,0.00016621,2]
[354072600,1740222652322,-462.0,0.00016621,2]
[354072601,1740222652332,-462.0,0.00016621,2]
[354072602,1740222652342,-462.0,0.00016621,2]
[354072603,1740222652351,-462.0,0.00016621,2]
[354072604,1740222652360,-462.0,0.00016621,2]
[354072605,1740222652369,-656.0,0.00016621,2]
[354072606,1740222652379,-656.0,0.00016621,2]
[354072607,1740222652388,-656.0,0.00016621,2]
[354072608,1740222652398,-656.0,0.00016621,2]
[354072609,1740222652407,-656.0,0.00016621,2]
[354072610,1740222652417,-656.0,0.00016621,2]
[354072611,1740222652426,-656.0,0.00016621,2]
[354072612,1740222652435,-656.0,0.00016621,2]
[354072613,1740222652445,-656.0,0.00016621,2]
[354072614,1740222652455,-656.0,0.00016621,2]
[354072615,1740222652464,-656.0,0.00016621,2]
[354072616,1740222652475,-656.0,0.00016621,2]
[354072617,1740222652484,-656.0,0.00016621,2]
[354072618,1740222652494,-656.0,0.00016621,2]
[354072619,1740222652503,-462.0,0.00016623,2]
[354072620,1740222652512,-462.0,0.00016623,2]
[354072621,1740222652522,-462.0,0.00016623,2]
[354072622,1740222652531,-462.0,0.00016623,2]
[354072623,1740222652541,-462.0,0.00016623,2]
[354072624,1740222652550,-462.0,0.00016623,2]
[354072625,1740222652559,-462.0,0.00016623,2]
[354072626,1740222652568,-462.0,0.00016623,2]
[354072627,1740222652577,-462.0,0.00016623,2]
[354072628,1740222652586,-462.0,0.00016623,2]
[354072629,1740222652596,-462.0,0.00016623,2]
[354072630,1740222652605,-462.0,0.00016623,2]
[354072631,1740222652614,-462.0,0.00016623,2]
[354072632,1740222652624,-462.0,0.00016623,2]
[354072633,1740222652633,-656.0,0.00016624,2]
[354072634,1740222652643,-656.0,0.00016624,2]
[354072635,1740222652652,-656.0,0.00016624,2]
[354072636,1740222652662,-656.0,0.00016624,2]
[354072637,1740222652671,-656.0,0.00016624,2]
[354072638,1740222652680,-656.0,0.00016624,2]
[354072639,1740222652690,-656.0,0.00016624,2]
[354072640,1740222652699,-656.0,0.00016624,2]
[354072641,1740222652708,-656.0,0.00016624,2]
[354072642,1740222652718,-656.0,0.00016624,2]
[354072643,1740222652727,-656.0,0.00016624,2]
[354072644,1740222652736,-656.0,0.00016624,2]
[354072645,1740222652745,-656.0,0.00016624,2]
[354072646,1740222652754,-656.0,0.00016624,2]
[354072647,1740222652763,-462.0,0.00016626,2]
[354072648,1740222652773,-462.0,0.00016626,2]
[354072649,1740222652781,-462.0,0.00016626,2]
[354072650,1740222652791,-462.0,0.00016626,2]
[354072651,1740222652801,-462.0,0.00016626,2]
[354072652,1740222652811,-462.0,0.00016626,2]
[354072653,1740222652820,-462.0,0.00016626,2]
[354072654,1740222652829,-462.0,0.00016626,2]
[354072655,1740222652838,-462.0,0.00016626,2]
[354072656,1740222652847,-462.0,0.00016626,2]
[354072657,1740222652856,-462.0,0.00016626,2]
[354072658,1740222652865,-462.0,0.00016626,2]
[354072659,1740222652874,-462.0,0.00016626,2]
[354072660,1740222652883,-462.0,0.00016626,2]
[354072661,1740222652892,-656.0,0.00016626,2]
[354072662,1740222652902,-656.0,0.00016626,2]
[354072663,1740222652911,-656.0,0.00016626,2]
[354072664,1740222652919,-656.0,0.00016626,2]
[354072665,1740222652929,-656.0,0.00016626,2]
[354072666,1740222652938,-656.0,0.00016626,2]
[354072667,1740222652947,-656.0,0.00016626,2]
[354072668,1740222652957,-656.0,0.00016626,2]
[354072669,1740222652966,-656.0,0.00016626,2]
[354072670,1740222652976,-656.0,0.00016626,2]
[354072671,1740222652985,-656.0,0.00016626,2]
[354072672,1740222652994,-656.0,0.00016626,2]
[354072673,1740222653004,-656.0,0.00016626,2]
[354072674,1740222653015,-656.0,0.00016626,2]
[354072675,1740222653024,-855.03201106,0.00016716,2]
[354072676,1740222653096,-1020.56930532,0.00016719,2]
[354072677,1740222653115,-160.0,0.000168,3]
[354072678,1740222653127,-855.03201106,0.00016816,2]
[354072679,1740222653136,-855.03201106,0.00016916,2]
[354072680,1740222653145,-154.37240874,0.00016932,2]
[354072681,1740222653155,-160.05706476,0.00016932,2]
[354072682,1740222653163,-823.0,0.00016986,2]
[354072683,1740222653174,-500.0,0.00016986,2]
[354072684,1740222653183,-500.0,0.00017,7]
[354072685,1740222653193,-500.0,0.00017,7]
[354072686,1740222653203,-500.0,0.00017,7]
[354072687,1740222653212,-500.0,0.00017,7]
[354072688,1740222653221,-500.0,0.00017,7]
[354072689,1740222653230,-500.0,0.00017,7]
[354072690,1740222653239,-500.0,0.00017,7]
[354072691,1740222653248,-288.67,0.00017,7]
[354072692,1740222653257,-855.03201106,0.00017016,2]
[354072693,1740222653267,-355.293833,0.00017041,2]
[354072694,1740222653276,-355.293833,0.00017041,2]
[354072695,1740222653285,-855.03201106,0.00017116,2]
[354072696,1740222653294,-154.37240874,0.00017151,2]
[354072697,1740222653304,-160.05706476,0.00017151,2]
[354072698,1740222653313,-557.2941539,0.00017178,2]
[354072699,1740222653322,-557.2941539,0.00017178,2]
[354072700,1740222653331,-855.03201106,0.00017216,2]
[354072701,1740222653340,-161.445249,0.00017225,2]
[354072702,1740222653350,-602.06919072,0.0001728,2]
[354072703,1740222653359,-855.03201106,0.00017316,2]
[354072704,1740222653369,-1000.262783,0.0001735,2]
[354072705,1740222653378,-154.37240874,0.0001737,2]
[354072706,1740222653387,-160.05706476,0.0001737,2]
[354072707,1740222653396,-855.03201106,0.00017416,2]
[354072708,1740222653405,-484.02343,0.00017441,2]
[354072709,1740222653415,-484.02343,0.00017441,2]
[354072710,1740222653424,-153.0,0.00017441,2]
[354072711,1740222653435,-153.0,0.00017441,2]
[354072712,1740222653445,-154.796407,0.00017441,2]
[354072713,1740222653455,-557.2941539,0.00017441,2]
[354072714,1740222653464,-477.768038,0.00017441,2]
[354072715,1740222653473,-154.796407,0.00017441,2]
[354072716,1740222653482,-557.2941539,0.00017441,2]
[354072717,1740222653491,-557.2941539,0.00017441,2]
[354072718,1740222653501,-557.2941539,0.00017441,2]
[354072719,1740222653510,-557.2941539,0.00017441,2]
[354072720,1740222653519,-1114.413034,0.00017441,2]
[354072721,1740222653528,-557.2941539,0.00017441,2]
[354072722,1740222653538,-557.2941539,0.00017441,2]
[354072723,1740222653547,-557.2941539,0.00017441,2]
[354072724,1740222653556,-217.7801784,0.00017441,2]
[354072725,1740222653565,-309.5567162,0.00017441,2]
[354072726,1740222653574,-557.2941539,0.00017441,2]
[354072727,1740222653583,-557.2941539,0.00017441,2]
[354072728,1740222653592,-557.2941539,0.00017441,2]
[354072729,1740222653602,-150.0,0.00017482,4]
[354072730,1740222653611,-855.03201106,0.00017516,2]
[354072731,1740222653621,-681.19,0.00017534,4]
[354072732,1740222653630,-154.37240874,0.00017589,2]
[354072733,1740222653639,-160.05706476,0.00017589,2]
[354072734,1740222653648,-855.03201106,0.00017616,2]
[354072735,1740222653657,-5069.01843,0.00017639,2]
[354072736,1740222653666,-210.455,0.00017639,2]
[354072737,1740222653675,-210.455,0.00017639,2]
[354072738,1740222653684,-151.0,0.00017639,2]
[354072739,1740222653694,-151.0,0.00017639,2]
[354072740,1740222653703,-825.400027,0.00017639,2]
[354072741,1740222653712,-825.400027,0.00017639,2]
[354072742,1740222653721,-166.626654,0.0001764,15]
[354072743,1740222653730,-11805.61848896,0.00017667,2]
[354072744,1740222653739,-855.03201106,0.00017716,2]
[354072745,1740222653749,-432.31365711,0.0001772,2]
[354072746,1740222653758,-500.0,0.0001772,2]
[354072747,1740222653767,-1000.0,0.00017743,2]
[354072748,1740222653776,-151.18936095,0.00017765,4]
[354072749,1740222653786,-1000.0,0.00017783,2]
[354072750,1740222653795,-150.0,0.000178,30]
[354072751,1740222653804,-6238.11532575,0.000178,2]
[354072752,1740222653815,-1000.0,0.00017807,2]
[354072753,1740222653825,-151.0,0.00017807,2]
[354072754,1740222653834,-400.861654,0.00017807,2]
[354072755,1740222653843,-400.861654,0.00017807,2]
[354072756,1740222653852,-160.05706476,0.00017808,2]
[354072757,1740222653862,-22627.40192453,0.00017811,2]
[354072758,1740222653871,-855.03201106,0.00017816,2]
[354072759,1740222653880,-151.0,0.00017869,2]
[354072760,1740222653889,-470.542967,0.00017869,2]
[354072761,1740222653899,-151.0,0.00017869,2]
[354072762,1740222653908,-335.487,0.00017869,2]
[354072763,1740222653918,-335.487,0.00017869,2]
[354072764,1740222653927,-151.0,0.00017869,2]
[354072765,1740222653936,-1334.194741,0.00017869,2]
[354072766,1740222653946,-1334.194741,0.00017869,2]
[354072767,1740222653955,-4962.729467,0.00017869,2]
[354072768,1740222653965,-4962.729467,0.00017869,2]
[354072769,1740222653974,-1000.0,0.00017886,2]
[354072770,1740222653983,-235.47164796,0.0001789,2]
[354072771,1740222654069,-93.52835204,0.0001789,2]
[354072772,1740222654078,-162.23168599,0.000179,2]
[354072773,1740222654159,-500.0,0.00013698,2]
[354072774,1740222654169,-500.0,0.00013698,2]
[354072775,1740222654178,-662.5,0.000179,2]
[354072776,1740222654378,-500.0,0.00013698,2]
[354072777,1740222654387,-557.2941539,0.000137,2]
[354072778,1740222654396,-710.587666,0.000137,2]
[354072779,1740222654406,-154.796407,0.000141,2]
[354072780,1740222654416,-2175.26831401,0.000179,2]
[354072781,1740222654425,-170.46,0.000179,31]
[354072782,1740222654434,-170.46,0.000179,31]
[354072783,1740222654443,-170.46,0.000179,31]
[354072784,1740222654452,-170.46,0.000179,31]
[354072785,1740222654462,-170.46,0.000179,31]
[354072786,1740222654471,-170.46,0.000179,31]
[354072787,1740222654480,-170.46,0.000179,31]
[354072788,1740222654489,-175.31325907,0.000179,2]
[354072791,1740223762139,-360.13707035,0.0001,2]
[354072792,1740223763153,-226.83493258,0.0001,2]
[354073317,1740223799488,221.145997,9.041e-05,2]
[354073353,1740223832264,-13.02799707,0.0001,2]
[354073355,1740223832273,-300.0,0.00012985,2]
[354073357,1740223832282,-1447.6690816,0.00012986,2]
[354073359,1740223832294,-5355.42544679,0.00012986,2]
[354073362,1740223832319,-1920.47688348,0.00012986,2]
[354073376,1740223832430,-16176.42858813,0.00012986,2]
[354073378,1740223832440,-500.0,0.00013698,2]
[354073380,1740223832449,-500.0,0.00013698,2]
[354073382,1740223832458,-500.0,0.00013698,2]
[354073384,1740223832467,-500.0,0.00013698,2]
[354073386,1740223832476,-500.0,0.00013698,2]
[354073387,1740223832484,-500.0,0.00013698,2]
[354073390,1740223832496,-500.0,0.00013698,2]
[354073392,1740223832506,-223.51981644,0.00013698,2]
[354073394,1740223832515,-500.0,0.00013698,2]
[354073396,1740223832524,-500.0,0.00013698,2]
[354073398,1740223832534,-500.0,0.00013698,2]
[354073400,1740223832543,-500.0,0.00013698,2]
[354073402,1740223832552,-500.0,0.00013698,2]
[354073403,1740223832561,-500.0,0.00013698,2]
[354073404,1740223832571,-500.0,0.00013698,2]
[354073405,1740223832583,-500.0,0.00013698,2]
[354073406,1740223832592,-500.0,0.00013698,2]
[354073407,1740223832601,-500.7687985,0.00013698,2]
[354073408,1740223832610,-500.0,0.00013698,2]
[354073409,1740223832629,-500.0,0.00013698,2]
[354073410,1740223832638,-500.0,0.00013698,2]
[354073411,1740223832648,-500.0,0.00013698,2]
[354073412,1740223832657,-500.0,0.00013698,2]
[354073413,1740223832667,-500.0,0.00013698,2]
[354073414,1740223832676,-500.0,0.00013698,2]
[354073415,1740223832685,-500.0,0.00013698,2]
[354073416,1740223832694,-269.85127545,0.00013698,2]
[354073417,1740223832703,-500.11331885,0.00013698,2]
[354073418,1740223832712,-500.0,0.00013698,2]
[354073419,1740223832722,-500.0,0.00013698,2]
[354073420,1740223832731,-297.9,0.00013698,2]
[354073421,1740223832741,-527.73626835,0.00013698,2]
[354073422,1740223832750,-291.23326434,0.00013698,2]
[354073423,1740223832760,-1083.04,0.00013698,2]
[354073425,1740223832769,-500.0,0.00013698,2]
[354073426,1740223832778,-500.0,0.00013698,2]
[354073428,1740223832788,-300.0,0.00013698,2]
[354073430,1740223832798,-500.0,0.00013698,2]
[354073432,1740223832807,-500.0,0.00013698,2]
[354073434,1740223832817,-500.0,0.00013698,2]
[354073436,1740223832826,-500.0,0.00013698,2]
[354073438,1740223832835,-909.35,0.00013698,2]
[354073440,1740223832844,-500.0,0.00013698,2]
[354073442,1740223832854,-500.0,0.00013698,2]
[354073444,1740223832863,-500.0,0.00013698,2]
[354073446,1740223832874,-500.0,0.00013698,2]
[354073448,1740223832883,-500.0,0.00013698,2]
[354073450,1740223832893,-500.0,0.00013698,2]
[354073452,1740223832903,-500.0,0.00013698,2]
[354073454,1740223832912,-815.73,0.00013698,2]
[354073456,1740223832922,-500.0,0.00013698,2]
[354073458,1740223832931,-620.80016253,0.00013698,2]
[354073460,1740223832941,-500.0,0.00013698,2]
[354073462,1740223832950,-500.0,0.00013698,2]
[354073465,1740223832961,-500.0,0.00013698,2]
[354073467,1740223832971,-500.0,0.00013698,2]
[354073469,1740223832986,-500.0,0.00013698,2]
[354073471,1740223832996,-500.0,0.00013698,2]
[354073473,1740223833005,-500.0,0.00013698,2]
[354073475,1740223833014,-500.0,0.00013698,2]
[354073477,1740223833024,-500.0,0.00013698,2]
[354073480,1740223833034,-500.0,0.00013698,2]
[354073482,1740223833043,-500.0,0.00013698,2]
[354073484,1740223833053,-507.92366608,0.00013698,2]
[354073486,1740223833063,-500.0,0.00013698,2]
[354073488,1740223833072,-500.0,0.00013698,2]
[354073490,1740223833082,-500.0,0.00013698,2]
[354073492,1740223833091,-500.0,0.00013698,2]
[354073494,1740223833101,-217.30890266,0.00013698,2]
[354073496,1740223833110,-500.0,0.00013698,2]
[354073497,1740223833119,-500.0,0.00013698,2]
[354073499,1740223833129,-500.0,0.00013698,2]
[354073502,1740223833139,-500.0,0.00013698,2]
[354073504,1740223833149,-946.95,0.00013698,2]
[354073506,1740223833159,-500.0,0.00013698,2]
[354073508,1740223833169,-500.0,0.00013698,2]
[354073509,1740223833178,-500.0,0.00013698,2]
[354073511,1740223833188,-4431.51,0.00013698,2]
[354073513,1740223833197,-500.0,0.00013698,2]
[354073515,1740223833210,-500.77121331,0.00013698,2]
[354073517,1740223833220,-500.0,0.00013698,2]
[354073519,1740223833229,-500.0,0.00013698,2]
[354073521,1740223833239,-500.0,0.00013698,2]
[354073523,1740223833250,-500.0,0.00013698,2]
[354073525,1740223833260,-500.0,0.00013698,2]
[354073527,1740223833270,-512.31735339,0.00013698,2]
[354073529,1740223833280,-500.0,0.00013698,2]
[354073531,1740223833290,-500.0,0.00013698,2]
[354073533,1740223833299,-500.0,0.00013698,2]
[354073535,1740223833308,-500.0,0.00013698,2]
[354073536,1740223833317,-500.0,0.00013698,2]
[354073538,1740223833327,-290.79,0.00013698,2]
[354073540,1740223833336,-500.0,0.00013698,2]
[354073542,1740223833346,-500.0,0.00013698,2]
[354073543,1740223833355,-500.0,0.00013698,2]
[354073545,1740223833364,-500.0,0.00013698,2]
[354073547,1740223833374,-500.0,0.00013698,2]
[354073549,1740223833383,-10083.74,0.00013698,2]
[354073551,1740223833393,-500.0,0.00013698,2]
[354073553,1740223833402,-500.0,0.00013698,2]
[354073555,1740223833411,-500.0,0.00013698,2]
[354073557,1740223833421,-1445.99,0.00013698,2]
[354073559,1740223833430,-500.0,0.00013698,2]
[354073561,1740223833439,-500.0,0.00013698,2]
[354073563,1740223833448,-500.0,0.00013698,2]
[354073574,1740223833603,-500.0,0.00013698,2]
[354073575,1740223833613,-500.0,0.00013698,2]
[354073576,1740223833623,-3268.61,0.00013698,2]
[354073577,1740223833632,-500.0,0.00013698,2]
[354073578,1740223833641,-500.0,0.00013698,2]
[354073579,1740223833651,-500.0,0.00013698,2]
[354073580,1740223833660,-500.0,0.00013698,2]
[354073581,1740223833670,-199.6044626,0.00013698,2]
[354073605,1740223838127,-300.3955374,0.00013698,2]
[354073607,1740223838137,-500.0,0.00013698,2]